[Event "*** Titled Tuesday Blitz"]
[Site "Chess.com"]
[Date "2019.01.01"]
[Round "7"]
[White "Andrew-FB00"]
[Black "Gubajdullin"]
[Result "0-1"]
[WhiteElo "1805"]
[BlackElo "2400"]
[TimeControl "180+2"]
[EndTime "14:35:16 PST"]
[Termination "Gubajdullin won by resignation"]

1. e4 {[%clk 0:03:01.9]} 1... g6 {[%clk 0:02:56.1]} 2. d4 {[%clk 0:03:01.8]}
2... Bg7 {[%clk 0:02:56.9]} 3. Nf3 {[%clk 0:03:02.2]} 3... d6 {[%clk 0:02:57.9]}
4. Nc3 {[%clk 0:03:01.5]} 4... a6 {[%clk 0:02:58.8]} 5. a4 {[%clk 0:03:00.7]}
5... Bg4 {[%clk 0:02:57.6]} 6. Be2 {[%clk 0:03:00.6]} 6... Nc6 {[%clk
0:02:58.6]} 7. Be3 {[%clk 0:02:59]} 7... Nf6 {[%clk 0:02:56.5]} 8. O-O {[%clk
0:02:56]} 8... O-O {[%clk 0:02:56]} 9. h3 {[%clk 0:02:56.7]} 9... Bxf3 {[%clk
0:02:56.2]} 10. Bxf3 {[%clk 0:02:57.6]} 10... e5 {[%clk 0:02:57.2]} 11. d5
{[%clk 0:02:50.2]} 11... Nd4 {[%clk 0:02:54.4]} 12. Bxd4 {[%clk 0:02:46.1]}
12... exd4 {[%clk 0:02:55.4]} 13. Qxd4 {[%clk 0:02:45.2]} 13... Re8 {[%clk
0:02:56.3]} 14. Qd3 {[%clk 0:02:38.9]} 14... Nd7 {[%clk 0:02:53]} 15. Rfe1
{[%clk 0:02:35.4]} 15... a5 {[%clk 0:02:51.7]} 16. Ra3 {[%clk 0:02:28.3]} 16...
Nc5 {[%clk 0:02:51.7]} 17. Qc4 {[%clk 0:02:17.1]} 17... Ra6 {[%clk 0:02:51.4]}
18. Nb5 {[%clk 0:02:16.4]} 18... Bxb2 {[%clk 0:02:50.6]} 19. Ra2 {[%clk
0:02:14.1]} 19... Bg7 {[%clk 0:02:50.6]} 20. Nd4 {[%clk 0:01:59.9]} 20... Rb6
{[%clk 0:02:50.9]} 21. Nb3 {[%clk 0:01:59.2]} 21... Rb4 {[%clk 0:02:49.7]} 22.
Qe2 {[%clk 0:01:38.8]} 22... Nxa4 {[%clk 0:02:50.4]} 23. Qe3 {[%clk 0:01:20.2]}
23... b6 {[%clk 0:02:46]} 24. Re2 {[%clk 0:01:06.8]} 24... Nc3 {[%clk
0:02:46.7]} 0-1

[Event "*** Titled Tuesday Blitz"]
[Site "Chess.com"]
[Date "2019.01.01"]
[Round "7"]
[White "mouseWLZ"]
[Black "Hikaru"]
[Result "0-1"]
[WhiteElo "2390"]
[BlackElo "3045"]
[TimeControl "180+2"]
[EndTime "14:36:13 PST"]
[Termination "Hikaru won by resignation"]

1. e4 {[%clk 0:02:48.9]} 1... e5 {[%clk 0:02:15.4]} 2. Nf3 {[%clk 0:02:49.6]}
2... Nc6 {[%clk 0:02:14]} 3. Bb5 {[%clk 0:02:50.3]} 3... a6 {[%clk 0:02:13.7]}
4. Ba4 {[%clk 0:02:49.6]} 4... g6 {[%clk 0:02:14.7]} 5. O-O {[%clk 0:02:48.3]}
5... Bg7 {[%clk 0:02:16.1]} 6. c3 {[%clk 0:02:48.7]} 6... Nge7 {[%clk
0:02:15.7]} 7. d4 {[%clk 0:02:49.4]} 7... exd4 {[%clk 0:02:16.6]} 8. cxd4 {[%clk
0:02:51.3]} 8... b5 {[%clk 0:02:17.8]} 9. Bb3 {[%clk 0:02:49.1]} 9... Na5 {[%clk
0:02:16.6]} 10. Bd2 {[%clk 0:02:47.2]} 10... Nxb3 {[%clk 0:02:17.1]} 11. Qxb3
{[%clk 0:02:48.8]} 11... O-O {[%clk 0:02:18.3]} 12. Bc3 {[%clk 0:02:37.7]} 12...
d5 {[%clk 0:02:09.4]} 13. Nbd2 {[%clk 0:02:32.4]} 13... dxe4 {[%clk 0:02:08.7]}
14. Nxe4 {[%clk 0:02:33.2]} 14... Bb7 {[%clk 0:02:09.8]} 15. Nfd2 {[%clk
0:02:28.8]} 15... Nf5 {[%clk 0:02:00.3]} 16. Nc5 {[%clk 0:02:19.7]} 16... Bd5
{[%clk 0:01:50.2]} 17. Qb4 {[%clk 0:02:20.4]} 17... c6 {[%clk 0:01:48]} 18. Nb7
{[%clk 0:02:03.9]} 18... Qg5 {[%clk 0:01:42.7]} 19. f3 {[%clk 0:01:57.2]} 19...
Ne3 {[%clk 0:01:39.8]} 20. Rf2 {[%clk 0:01:56]} 20... Nc2 {[%clk 0:01:41]} 21.
Qc5 {[%clk 0:01:28.1]} 21... Nxa1 {[%clk 0:01:40.9]} 22. Ne4 {[%clk 0:01:29.7]}
22... Qc1+ {[%clk 0:01:36.6]} 23. Rf1 {[%clk 0:01:30.9]} 23... Qe3+ {[%clk
0:01:38.1]} 24. Kh1 {[%clk 0:01:30.9]} 24... Bxe4 {[%clk 0:01:39.1]} 25. fxe4
{[%clk 0:01:32]} 25... Nc2 {[%clk 0:01:37.5]} 26. d5 {[%clk 0:01:22.7]} 26...
Qxc5 {[%clk 0:01:38.2]} 27. Nxc5 {[%clk 0:01:24.6]} 27... Bxc3 {[%clk
0:01:39.3]} 28. bxc3 {[%clk 0:01:24.8]} 28... cxd5 {[%clk 0:01:40.8]} 29. exd5
{[%clk 0:01:26.7]} 29... Ne3 {[%clk 0:01:40.7]} 30. Re1 {[%clk 0:01:26.1]} 0-1

[Event "*** Titled Tuesday Blitz"]
[Site "Chess.com"]
[Date "2019.01.01"]
[Round "7"]
[White "andante"]
[Black "MateSchmate"]
[Result "0-1"]
[WhiteElo "2283"]
[BlackElo "2481"]
[TimeControl "180+2"]
[EndTime "14:36:16 PST"]
[Termination "MateSchmate won by checkmate"]

1. e4 {[%clk 0:03:00.9]} 1... e6 {[%clk 0:03:00.9]} 2. d4 {[%clk 0:03:01]} 2...
d5 {[%clk 0:03:01.7]} 3. Nc3 {[%clk 0:02:59.6]} 3... Bb4 {[%clk 0:02:57]} 4. e5
{[%clk 0:03:00]} 4... c5 {[%clk 0:02:57.8]} 5. a3 {[%clk 0:03:00.7]} 5... Bxc3+
{[%clk 0:02:59.1]} 6. bxc3 {[%clk 0:03:01.7]} 6... Qc7 {[%clk 0:03:01]} 7. Qg4
{[%clk 0:03:01.7]} 7... f5 {[%clk 0:03:01.1]} 8. Qg3 {[%clk 0:02:48.9]} 8... Nc6
{[%clk 0:03:01]} 9. Bb5 {[%clk 0:02:23.8]} 9... cxd4 {[%clk 0:02:57.7]} 10. Ne2
{[%clk 0:02:15]} 10... Ne7 {[%clk 0:02:46.7]} 11. Qxg7 {[%clk 0:02:12.1]} 11...
Rg8 {[%clk 0:02:47.7]} 12. Qxh7 {[%clk 0:02:13]} 12... dxc3 {[%clk 0:02:38.2]}
13. Bf4 {[%clk 0:02:07]} 13... Rxg2 {[%clk 0:02:28.6]} 14. Ng3 {[%clk
0:02:01.6]} 14... Qb6 {[%clk 0:02:25.5]} 15. Bxc6+ {[%clk 0:01:45.4]} 15... bxc6
{[%clk 0:02:25.7]} 16. Rf1 {[%clk 0:01:35.1]} 16... Ba6 {[%clk 0:02:25]} 17.
Qh8+ {[%clk 0:01:28.3]} 17... Kd7 {[%clk 0:02:25.9]} 18. Qxa8 {[%clk 0:01:29.2]}
18... Bxf1 {[%clk 0:02:27]} 19. Be3 {[%clk 0:01:27]} 19... d4 {[%clk 0:02:15.1]}
20. Bxd4 {[%clk 0:01:27.4]} 20... Qb5 {[%clk 0:02:08.1]} 21. Qxa7+ {[%clk
0:01:23.5]} 21... Ke8 {[%clk 0:02:09.3]} 22. a4 {[%clk 0:01:13.8]} 22... Qc4
{[%clk 0:02:01.3]} 23. Qc5 {[%clk 0:01:14.8]} 23... Qa6 {[%clk 0:01:52.3]} 24.
Nxf1 {[%clk 0:01:10.8]} 24... Rg1 {[%clk 0:01:49]} 25. O-O-O {[%clk 0:01:01.4]}
25... Rxf1 {[%clk 0:01:49.9]} 26. Qa7 {[%clk 0:00:58.3]} 26... Rxd1+ {[%clk
0:01:49.8]} 27. Kxd1 {[%clk 0:00:55.5]} 27... Qf1# {[%clk 0:01:51.7]} 0-1

[Event "*** Titled Tuesday Blitz"]
[Site "Chess.com"]
[Date "2019.01.01"]
[Round "7"]
[White "TheNomNomFactor"]
[Black "Babas"]
[Result "0-1"]
[WhiteElo "2405"]
[BlackElo "2287"]
[TimeControl "180+2"]
[EndTime "14:36:17 PST"]
[Termination "Babas won by resignation"]

1. d4 {[%clk 0:03:01.9]} 1... Nf6 {[%clk 0:02:57.4]} 2. c4 {[%clk 0:03:02.2]}
2... c5 {[%clk 0:02:55.5]} 3. d5 {[%clk 0:03:02.8]} 3... e5 {[%clk 0:02:49.3]}
4. Nc3 {[%clk 0:03:01.6]} 4... d6 {[%clk 0:02:50.4]} 5. e4 {[%clk 0:03:00]} 5...
Be7 {[%clk 0:02:51.9]} 6. Bd3 {[%clk 0:02:56.4]} 6... Nbd7 {[%clk 0:02:51.7]} 7.
Nge2 {[%clk 0:02:56.7]} 7... h5 {[%clk 0:02:40.8]} 8. Ng3 {[%clk 0:02:54.9]}
8... g6 {[%clk 0:02:41.8]} 9. h4 {[%clk 0:02:43.5]} 9... Ng4 {[%clk 0:02:31.8]}
10. Qf3 {[%clk 0:02:37.4]} 10... Bxh4 {[%clk 0:02:23.3]} 11. Bd2 {[%clk
0:02:38.1]} 11... Bg5 {[%clk 0:02:22.4]} 12. O-O-O {[%clk 0:02:30.8]} 12... Qf6
{[%clk 0:01:46.3]} 13. Qe2 {[%clk 0:02:23.6]} 13... Nxf2 {[%clk 0:01:38.5]} 14.
Rdf1 {[%clk 0:02:13.9]} 14... Bxd2+ {[%clk 0:01:04.5]} 15. Kxd2 {[%clk
0:02:12.1]} 15... Qg5+ {[%clk 0:01:05]} 16. Kc2 {[%clk 0:02:08.1]} 16... Nxh1
{[%clk 0:01:02.9]} 17. Nxh1 {[%clk 0:02:09.2]} 17... O-O {[%clk 0:00:56.9]} 18.
Nf2 {[%clk 0:02:04.5]} 18... Nf6 {[%clk 0:00:55.7]} 19. Nh3 {[%clk 0:02:03.8]}
19... Bxh3 {[%clk 0:00:51.4]} 20. gxh3 {[%clk 0:02:05.7]} 20... h4 {[%clk
0:00:46.1]} 21. Nd1 {[%clk 0:02:00.4]} 21... Nh5 {[%clk 0:00:46.7]} 22. Ne3
{[%clk 0:01:59.8]} 22... Ng3 {[%clk 0:00:44.7]} 23. Qf3 {[%clk 0:01:57.1]} 23...
Nxf1 {[%clk 0:00:43]} 24. Qxf1 {[%clk 0:01:59]} 24... Qxe3 {[%clk 0:00:41.7]}
0-1

[Event "*** Titled Tuesday Blitz"]
[Site "Chess.com"]
[Date "2019.01.01"]
[Round "7"]
[White "jerom555888"]
[Black "xxysoul6"]
[Result "0-1"]
[WhiteElo "2706"]
[BlackElo "2901"]
[TimeControl "180+2"]
[EndTime "14:36:21 PST"]
[Termination "xxysoul6 won by resignation"]

1. Nf3 {[%clk 0:03:01.9]} 1... g6 {[%clk 0:02:59.4]} 2. g3 {[%clk 0:02:56.9]}
2... Bg7 {[%clk 0:03:00.4]} 3. d4 {[%clk 0:02:58.3]} 3... Nf6 {[%clk 0:03:01.5]}
4. Bg2 {[%clk 0:02:59.7]} 4... O-O {[%clk 0:03:02.7]} 5. O-O {[%clk 0:03:01.4]}
5... d5 {[%clk 0:03:04.2]} 6. Nbd2 {[%clk 0:03:02.3]} 6... c5 {[%clk 0:02:55.9]}
7. dxc5 {[%clk 0:03:03.2]} 7... Na6 {[%clk 0:02:55.8]} 8. Nb3 {[%clk 0:03:04.4]}
8... Ne4 {[%clk 0:02:56.2]} 9. Ng5 {[%clk 0:03:05.3]} 9... f5 {[%clk 0:02:45.7]}
10. Nxe4 {[%clk 0:02:56]} 10... dxe4 {[%clk 0:02:46.6]} 11. c3 {[%clk
0:02:50.6]} 11... Be6 {[%clk 0:02:44.3]} 12. Nd4 {[%clk 0:02:43.5]} 12... Bf7
{[%clk 0:02:18.4]} 13. b4 {[%clk 0:02:43.3]} 13... Nxb4 {[%clk 0:02:19.3]} 14.
cxb4 {[%clk 0:02:42.1]} 14... Qxd4 {[%clk 0:02:16.9]} 15. Bg5 {[%clk 0:02:17.9]}
15... Qxa1 {[%clk 0:02:06.7]} 16. Qxa1 {[%clk 0:02:18.7]} 16... Bxa1 {[%clk
0:02:08.6]} 17. Rxa1 {[%clk 0:02:19.7]} 17... Rfd8 {[%clk 0:02:10]} 18. Bxe7
{[%clk 0:02:19.4]} 18... Rd2 {[%clk 0:02:11.1]} 19. a4 {[%clk 0:02:17.2]} 19...
Rxe2 {[%clk 0:02:11.5]} 20. a5 {[%clk 0:02:15.4]} 20... a6 {[%clk 0:02:10.2]}
21. Rb1 {[%clk 0:02:08.6]} 21... Re8 {[%clk 0:02:10.2]} 22. Bd6 {[%clk
0:02:07.8]} 22... Rc2 {[%clk 0:02:08.7]} 23. h4 {[%clk 0:02:04.5]} 23... Bc4
{[%clk 0:02:06.5]} 24. Bf4 {[%clk 0:02:02.6]} 24... Rd8 {[%clk 0:02:07.3]} 25.
Bd6 {[%clk 0:02:03.4]} 25... Bb5 {[%clk 0:02:08.5]} 26. g4 {[%clk 0:02:01.5]}
26... Bc6 {[%clk 0:02:08.4]} 27. Rd1 {[%clk 0:01:48.4]} 27... fxg4 {[%clk
0:02:00]} 28. Rd4 {[%clk 0:01:44]} 28... Re8 {[%clk 0:01:57]} 29. Bf1 {[%clk
0:01:33.9]} 29... e3 {[%clk 0:01:57]} 30. fxe3 {[%clk 0:01:33.2]} 30... Rxe3
{[%clk 0:01:57.6]} 31. Bc4+ {[%clk 0:01:34.3]} 31... Kg7 {[%clk 0:01:56]} 32.
Rf4 {[%clk 0:01:30.7]} 32... Re1+ {[%clk 0:01:51.2]} 33. Bf1 {[%clk 0:01:31]}
33... Rg2+ {[%clk 0:01:50.5]} 34. Kh1 {[%clk 0:01:30.4]} 34... Rf2+ {[%clk
0:01:51.8]} 0-1

[Event "*** Titled Tuesday Blitz"]
[Site "Chess.com"]
[Date "2019.01.01"]
[Round "7"]
[White "Jbd735"]
[Black "akhairat"]
[Result "1-0"]
[WhiteElo "2466"]
[BlackElo "2227"]
[TimeControl "180+2"]
[EndTime "14:36:22 PST"]
[Termination "Jbd735 won on time"]

1. e4 {[%clk 0:03:01.9]} 1... c5 {[%clk 0:03:00.2]} 2. Nf3 {[%clk 0:03:02.4]}
2... a6 {[%clk 0:03:01.4]} 3. c4 {[%clk 0:03:00.6]} 3... Nc6 {[%clk 0:03:02.5]}
4. d4 {[%clk 0:03:00.2]} 4... cxd4 {[%clk 0:03:03.9]} 5. Nxd4 {[%clk 0:03:02]}
5... e5 {[%clk 0:03:04]} 6. Nf5 {[%clk 0:02:58.2]} 6... d6 {[%clk 0:02:58.9]} 7.
Nc3 {[%clk 0:02:52]} 7... Bxf5 {[%clk 0:02:38.2]} 8. exf5 {[%clk 0:02:52.5]}
8... h6 {[%clk 0:02:38.1]} 9. g4 {[%clk 0:02:34.2]} 9... Nf6 {[%clk 0:02:33.2]}
10. Bg2 {[%clk 0:02:33.6]} 10... Be7 {[%clk 0:02:33.1]} 11. Be3 {[%clk
0:02:28.7]} 11... Qa5 {[%clk 0:02:27.1]} 12. O-O {[%clk 0:02:25]} 12... Rc8
{[%clk 0:02:21.2]} 13. Rc1 {[%clk 0:02:09.3]} 13... Qb4 {[%clk 0:02:20.6]} 14.
Nd5 {[%clk 0:01:55.6]} 14... Nxd5 {[%clk 0:02:04.3]} 15. cxd5 {[%clk 0:01:54.2]}
1-0

[Event "*** Titled Tuesday Blitz"]
[Site "Chess.com"]
[Date "2019.01.01"]
[Round "7"]
[White "Parhamov"]
[Black "LawrenceTrent"]
[Result "1-0"]
[WhiteElo "2891"]
[BlackElo "2539"]
[TimeControl "180+2"]
[EndTime "14:36:49 PST"]
[Termination "Parhamov won by resignation"]

1. e4 {[%clk 0:02:59.8]} 1... g6 {[%clk 0:03:01.4]} 2. d4 {[%clk 0:02:58.9]}
2... Bg7 {[%clk 0:03:02.7]} 3. Nf3 {[%clk 0:02:58.1]} 3... d6 {[%clk 0:03:03.3]}
4. Bc4 {[%clk 0:02:59.3]} 4... c6 {[%clk 0:03:00.3]} 5. Bb3 {[%clk 0:02:59.9]}
5... Nf6 {[%clk 0:02:58.7]} 6. Qe2 {[%clk 0:03:00.6]} 6... O-O {[%clk
0:02:59.1]} 7. O-O {[%clk 0:03:00.2]} 7... Bg4 {[%clk 0:02:58.7]} 8. Nbd2 {[%clk
0:03:00.7]} 8... Nbd7 {[%clk 0:02:59.5]} 9. h3 {[%clk 0:03:01.5]} 9... Bxf3
{[%clk 0:03:00.9]} 10. Nxf3 {[%clk 0:03:02.6]} 10... e5 {[%clk 0:03:02.8]} 11.
dxe5 {[%clk 0:03:03.7]} 11... dxe5 {[%clk 0:02:59.5]} 12. c3 {[%clk 0:02:59.5]}
12... Qe7 {[%clk 0:02:59.1]} 13. a4 {[%clk 0:02:58.9]} 13... a5 {[%clk
0:02:57.6]} 14. Bc2 {[%clk 0:02:59.9]} 14... Rfd8 {[%clk 0:02:56.5]} 15. b3
{[%clk 0:03:00.5]} 15... h6 {[%clk 0:02:52.6]} 16. g3 {[%clk 0:03:01.4]} 16...
Qe6 {[%clk 0:02:51.4]} 17. Kg2 {[%clk 0:03:02.3]} 17... Nc5 {[%clk 0:02:52.3]}
18. Ba3 {[%clk 0:03:02.3]} 18... Bf8 {[%clk 0:02:44.8]} 19. Qe3 {[%clk
0:02:59.2]} 19... b6 {[%clk 0:02:21.9]} 20. b4 {[%clk 0:02:59.6]} 20... axb4
{[%clk 0:02:18.2]} 21. cxb4 {[%clk 0:03:00.5]} 21... Nxa4 {[%clk 0:02:14.9]} 22.
Bb3 {[%clk 0:03:01.4]} 22... Qe8 {[%clk 0:02:11.5]} 23. Rfc1 {[%clk 0:02:39.3]}
23... c5 {[%clk 0:01:49]} 24. b5 {[%clk 0:02:35.7]} 24... Rd4 {[%clk 0:01:11.3]}
25. Nxd4 {[%clk 0:02:35.6]} 25... exd4 {[%clk 0:01:03.3]} 26. Qf3 {[%clk
0:02:36.6]} 26... Qxe4 {[%clk 0:00:48.3]} 27. Bb2 {[%clk 0:02:35.1]} 27... Qxf3+
{[%clk 0:00:36.4]} 28. Kxf3 {[%clk 0:02:35.4]} 28... Nxb2 {[%clk 0:00:38.3]} 29.
Rxa8 {[%clk 0:02:35.9]} 29... d3 {[%clk 0:00:34.4]} 30. Ra7 {[%clk 0:02:34.9]}
30... c4 {[%clk 0:00:32.4]} 31. Rxc4 {[%clk 0:02:35.3]} 31... Bc5 {[%clk
0:00:30.6]} 32. Rf4 {[%clk 0:02:33.3]} 32... Nh7 {[%clk 0:00:22.6]} 33. h4
{[%clk 0:02:33.4]} 1-0

[Event "*** Titled Tuesday Blitz"]
[Site "Chess.com"]
[Date "2019.01.01"]
[Round "7"]
[White "MatyChess1"]
[Black "wannabe2700"]
[Result "0-1"]
[WhiteElo "2489"]
[BlackElo "2556"]
[TimeControl "180+2"]
[EndTime "14:37:12 PST"]
[Termination "wannabe2700 won on time"]

1. e4 {[%clk 0:03:01.3]} 1... e6 {[%clk 0:02:59.7]} 2. d3 {[%clk 0:02:58.1]}
2... d5 {[%clk 0:03:01.6]} 3. Qe2 {[%clk 0:02:58.8]} 3... Nf6 {[%clk 0:02:54]}
4. Nf3 {[%clk 0:02:58.5]} 4... c5 {[%clk 0:02:53.9]} 5. g3 {[%clk 0:02:58]} 5...
Nc6 {[%clk 0:02:47.1]} 6. Bg2 {[%clk 0:02:58.4]} 6... b5 {[%clk 0:02:47.9]} 7.
O-O {[%clk 0:02:56.4]} 7... Be7 {[%clk 0:02:46]} 8. Re1 {[%clk 0:02:51.6]} 8...
a5 {[%clk 0:02:45.4]} 9. e5 {[%clk 0:02:38.3]} 9... Nd7 {[%clk 0:02:45.7]} 10.
h4 {[%clk 0:02:40.2]} 10... b4 {[%clk 0:02:45.7]} 11. h5 {[%clk 0:02:33.5]}
11... h6 {[%clk 0:02:45.2]} 12. Bf4 {[%clk 0:02:15]} 12... Qc7 {[%clk
0:02:35.6]} 13. Nbd2 {[%clk 0:01:16.4]} 13... g5 {[%clk 0:02:35.8]} 14. hxg6
{[%clk 0:01:16.5]} 14... fxg6 {[%clk 0:02:37.7]} 15. g4 {[%clk 0:00:38.9]} 15...
g5 {[%clk 0:02:32.9]} 16. Bg3 {[%clk 0:00:39.9]} 16... Bb7 {[%clk 0:02:23.5]}
17. c3 {[%clk 0:00:36.8]} 17... O-O-O {[%clk 0:02:10.4]} 18. a3 {[%clk
0:00:36.9]} 18... Rdg8 {[%clk 0:01:41.4]} 19. axb4 {[%clk 0:00:36.7]} 19... axb4
{[%clk 0:01:41.8]} 20. cxb4 {[%clk 0:00:22.9]} 20... Nxb4 {[%clk 0:01:43.7]} 21.
Rec1 {[%clk 0:00:23.3]} 21... h5 {[%clk 0:01:43.9]} 22. gxh5 {[%clk 0:00:22.7]}
22... g4 {[%clk 0:01:45.8]} 23. Nd4 {[%clk 0:00:22.8]} 23... Qb6 {[%clk
0:01:44.4]} 24. N4b3 {[%clk 0:00:04.4]} 24... Ba6 {[%clk 0:01:45.5]} 0-1

[Event "*** Titled Tuesday Blitz"]
[Site "Chess.com"]
[Date "2019.01.01"]
[Round "7"]
[White "Fluffey"]
[Black "TwentyHourADay"]
[Result "1-0"]
[WhiteElo "2456"]
[BlackElo "2263"]
[TimeControl "180+2"]
[EndTime "14:37:15 PST"]
[Termination "Fluffey won by resignation"]

1. Nf3 {[%clk 0:03:01.9]} 1... g6 {[%clk 0:03:00]} 2. g3 {[%clk 0:03:01.5]} 2...
Bg7 {[%clk 0:03:01.5]} 3. d4 {[%clk 0:03:02.9]} 3... d6 {[%clk 0:03:02.5]} 4.
Bg2 {[%clk 0:03:04.2]} 4... Nd7 {[%clk 0:03:03.7]} 5. O-O {[%clk 0:03:05.5]}
5... Ngf6 {[%clk 0:03:05.1]} 6. b3 {[%clk 0:03:05.3]} 6... O-O {[%clk
0:03:06.2]} 7. Bb2 {[%clk 0:03:06.6]} 7... c6 {[%clk 0:03:07.6]} 8. Nbd2 {[%clk
0:03:06.9]} 8... Qc7 {[%clk 0:03:08.9]} 9. e4 {[%clk 0:03:08]} 9... Re8 {[%clk
0:03:10.4]} 10. Re1 {[%clk 0:03:09.2]} 10... e5 {[%clk 0:03:11.7]} 11. Nc4
{[%clk 0:03:01.7]} 11... exd4 {[%clk 0:03:10.6]} 12. Qxd4 {[%clk 0:02:54.5]}
12... d5 {[%clk 0:03:06]} 13. exd5 {[%clk 0:02:49.8]} 13... cxd5 {[%clk
0:03:06.1]} 14. Rxe8+ {[%clk 0:02:43.3]} 14... Nxe8 {[%clk 0:03:07.1]} 15. Qxd5
{[%clk 0:02:43.2]} 15... Bxb2 {[%clk 0:03:07.9]} 16. Nxb2 {[%clk 0:02:44.4]}
16... Qxc2 {[%clk 0:03:09.1]} 17. Nc4 {[%clk 0:02:39.7]} 17... Ndf6 {[%clk
0:03:05.6]} 18. Qd8 {[%clk 0:02:36.9]} 18... b5 {[%clk 0:02:48.9]} 19. Nce5
{[%clk 0:02:33.6]} 19... Bb7 {[%clk 0:02:39.1]} 20. Qe7 {[%clk 0:02:33.4]} 20...
Qc7 {[%clk 0:02:39.4]} 21. Qxc7 {[%clk 0:02:30.1]} 21... Nxc7 {[%clk 0:02:39.7]}
22. Rc1 {[%clk 0:02:27.6]} 22... Ne6 {[%clk 0:02:37.2]} 23. h4 {[%clk
0:02:15.8]} 23... Rc8 {[%clk 0:02:02]} 24. Rxc8+ {[%clk 0:02:13.3]} 24... Bxc8
{[%clk 0:02:02.8]} 25. Ng5 {[%clk 0:02:09]} 25... Nd8 {[%clk 0:01:45]} 26. Kf1
{[%clk 0:01:49.8]} 26... h6 {[%clk 0:01:22]} 27. Ne4 {[%clk 0:01:50.1]} 27...
Nxe4 {[%clk 0:01:22.9]} 28. Bxe4 {[%clk 0:01:51.5]} 28... Kf8 {[%clk 0:01:22.2]}
29. Nc6 {[%clk 0:01:37]} 29... Nxc6 {[%clk 0:01:20.2]} 30. Bxc6 {[%clk
0:01:37.9]} 30... b4 {[%clk 0:01:21.5]} 31. Ke2 {[%clk 0:01:36.4]} 31... Ke7
{[%clk 0:01:20.1]} 32. Kd3 {[%clk 0:01:35.6]} 32... Ba6+ {[%clk 0:01:20.6]} 33.
Kd4 {[%clk 0:01:35.9]} 33... Kd6 {[%clk 0:01:21.6]} 34. Be8 {[%clk 0:01:36.8]}
34... g5 {[%clk 0:01:11.8]} 35. Bxf7 {[%clk 0:01:37]} 35... gxh4 {[%clk
0:01:13.2]} 36. gxh4 {[%clk 0:01:38.1]} 36... Be2 {[%clk 0:01:14]} 37. f4 {[%clk
0:01:37.5]} 37... a5 {[%clk 0:01:15]} 38. Bc4 {[%clk 0:01:37.6]} 38... Bg4
{[%clk 0:01:15.5]} 39. Bd3 {[%clk 0:01:36.1]} 39... Be6 {[%clk 0:01:14.3]} 40.
f5 {[%clk 0:01:35.3]} 40... Bf7 {[%clk 0:01:15.5]} 41. Bc4 {[%clk 0:01:34]} 1-0

[Event "*** Titled Tuesday Blitz"]
[Site "Chess.com"]
[Date "2019.01.01"]
[Round "7"]
[White "WorldChampionBulletChess"]
[Black "BillCoe"]
[Result "1-0"]
[WhiteElo "2102"]
[BlackElo "1982"]
[TimeControl "180+2"]
[EndTime "14:37:26 PST"]
[Termination "WorldChampionBulletChess won by resignation"]

1. d4 {[%clk 0:03:01.9]} 1... d5 {[%clk 0:03:00.4]} 2. Nf3 {[%clk 0:02:55.4]}
2... c6 {[%clk 0:02:57.7]} 3. g3 {[%clk 0:02:55.9]} 3... Bf5 {[%clk 0:02:57]} 4.
Bg2 {[%clk 0:02:51.8]} 4... e6 {[%clk 0:02:54.1]} 5. O-O {[%clk 0:02:51.9]} 5...
Be7 {[%clk 0:02:49.4]} 6. b3 {[%clk 0:02:52]} 6... Nf6 {[%clk 0:02:49.4]} 7. Bb2
{[%clk 0:02:46.9]} 7... O-O {[%clk 0:02:48.7]} 8. Nbd2 {[%clk 0:02:44.9]} 8...
Nbd7 {[%clk 0:02:48.7]} 9. c4 {[%clk 0:02:34.5]} 9... c5 {[%clk 0:02:34.3]} 10.
e3 {[%clk 0:02:34.4]} 10... Rc8 {[%clk 0:02:29.9]} 11. dxc5 {[%clk 0:02:35.4]}
11... Nxc5 {[%clk 0:02:21.2]} 12. Ba3 {[%clk 0:02:35.2]} 12... Nce4 {[%clk
0:02:19.4]} 13. Bxe7 {[%clk 0:02:34.8]} 13... Qxe7 {[%clk 0:02:18.2]} 14. Nxe4
{[%clk 0:02:34.6]} 14... Bxe4 {[%clk 0:02:13]} 15. cxd5 {[%clk 0:02:27.4]} 15...
Bxd5 {[%clk 0:02:12]} 16. Qd4 {[%clk 0:02:23.4]} 16... Rfd8 {[%clk 0:02:11.3]}
17. Qxa7 {[%clk 0:02:20.9]} 17... Qc7 {[%clk 0:02:04]} 18. Qd4 {[%clk
0:02:13.7]} 18... Qc6 {[%clk 0:02:01.7]} 19. Qf4 {[%clk 0:02:13.1]} 19... Nh5
{[%clk 0:01:47.9]} 20. Qg4 {[%clk 0:02:10.4]} 20... g6 {[%clk 0:01:43.4]} 21.
Nh4 {[%clk 0:02:10.4]} 21... f5 {[%clk 0:01:36.4]} 22. Qg5 {[%clk 0:02:03.5]}
22... Bxg2 {[%clk 0:01:27.8]} 23. Nxg2 {[%clk 0:02:01.6]} 23... Rd2 {[%clk
0:01:18.1]} 24. Nf4 {[%clk 0:01:55.3]} 24... Ng7 {[%clk 0:01:03.9]} 25. Qf6
{[%clk 0:01:43.2]} 25... Rf8 {[%clk 0:00:59.9]} 26. Qe5 {[%clk 0:01:42.8]} 26...
Re8 {[%clk 0:00:41]} 27. Rac1 {[%clk 0:01:37.4]} 27... Qf3 {[%clk 0:00:40.8]}
28. Rc7 {[%clk 0:01:36.6]} 1-0

[Event "*** Titled Tuesday Blitz"]
[Site "Chess.com"]
[Date "2019.01.01"]
[Round "7"]
[White "MerdeNoms943"]
[Black "harperchesstt"]
[Result "1-0"]
[WhiteElo "2256"]
[BlackElo "2112"]
[TimeControl "180+2"]
[EndTime "14:37:39 PST"]
[Termination "MerdeNoms943 won by resignation"]

1. e4 {[%clk 0:03:01.9]} 1... c5 {[%clk 0:03:00.8]} 2. Nf3 {[%clk 0:03:02.9]}
2... d6 {[%clk 0:03:02.1]} 3. d4 {[%clk 0:03:03.5]} 3... cxd4 {[%clk 0:03:04]}
4. Nxd4 {[%clk 0:03:03.9]} 4... Nf6 {[%clk 0:03:05.7]} 5. Nc3 {[%clk 0:03:04.9]}
5... g6 {[%clk 0:03:07.3]} 6. Be3 {[%clk 0:03:05]} 6... Bg7 {[%clk 0:03:08.9]}
7. f3 {[%clk 0:03:05.8]} 7... O-O {[%clk 0:03:10.6]} 8. Qd2 {[%clk 0:03:06.7]}
8... Nc6 {[%clk 0:03:12.3]} 9. Bc4 {[%clk 0:03:08.2]} 9... Bd7 {[%clk
0:03:12.8]} 10. O-O-O {[%clk 0:03:06.3]} 10... Ne5 {[%clk 0:03:14.3]} 11. Bb3
{[%clk 0:03:07.4]} 11... Qa5 {[%clk 0:03:15.9]} 12. Kb1 {[%clk 0:02:41.4]} 12...
Rfc8 {[%clk 0:03:16.9]} 13. Bg5 {[%clk 0:02:41.3]} 13... Rxc3 {[%clk 0:03:17.1]}
14. Qxc3 {[%clk 0:02:39.4]} 14... Qxc3 {[%clk 0:03:17.6]} 15. bxc3 {[%clk
0:02:41]} 15... Rc8 {[%clk 0:03:18.9]} 16. Rhe1 {[%clk 0:02:39.9]} 16... Be8
{[%clk 0:02:45.7]} 17. f4 {[%clk 0:02:28.8]} 17... Nc4 {[%clk 0:02:07]} 18. e5
{[%clk 0:01:59.9]} 18... dxe5 {[%clk 0:02:02]} 19. fxe5 {[%clk 0:02:01.8]} 19...
Nd5 {[%clk 0:01:59.1]} 20. Rd3 {[%clk 0:01:47.5]} 20... b5 {[%clk 0:01:24.1]}
21. Nxb5 {[%clk 0:01:30.8]} 21... e6 {[%clk 0:00:43.4]} 22. Bxc4 {[%clk
0:01:08.3]} 22... Bxb5 {[%clk 0:00:21.4]} 23. Bxb5 {[%clk 0:01:00.2]} 23... Rb8
{[%clk 0:00:22.8]} 24. c4 {[%clk 0:00:57.3]} 1-0